Cogmind - Beta 11.1 *** ADVENTURER MODE // 2022.08.13 @ 16:14:42 Player: Ms Vella Result: Destroyed by D-53 Grenadier with Mini Grenade Launcher Performance ------------- Evolutions (0) 0 Regions Visited (2) 400 Robots Destroyed (20) 100 Value Destroyed (259) 259 Prototype IDs (1) 20 Alien Tech Used (0) 0 Bonus (0) 0 TOTAL SCORE: 779 Bonus ------- None Cogmind --------- Core Integrity 0/250 Matter 146/300 Energy 58/100 System Corruption 2% Temperature Cool (0) Movement Core (150) Ox2 Location -10/Mines Parts ------- > --- POWER (1) -------- (None) > --- PROPULSION (2) --- (None) > --- UTILITY (2) ------ Small Storage Unit > --- WEAPON (2) ------- Light Assault Rifle Light Assault Rifle > --- INVENTORY (8) ---- High-capacity Matter Pod (0) Experimental Sensor Array Seismic Detector Light Assault Rifle Hammer Peak State ------------ > --- POWER ------------ Light Nuclear Core > --- PROPULSION ------- Hover Unit Backup Propulsion I > --- UTILITY ---------- Small Storage Unit Experimental Sensor Array > --- WEAPON ----------- Light Assault Rifle Light Assault Rifle > --- INVENTORY -------- Ion Engine Backup Propulsion I High-capacity Matter Pod Seismic Detector Light Assault Rifle Grenade Launcher Hammer [Rating: 17] Favorites ----------- Power Light Nuclear Core Engine Ion Engine Power Core Light Nuclear Core Propulsion Hover Unit Leg Aluminum Leg Hover Unit Hover Unit Utility Small Storage Unit Device Seismic Detector Storage Small Storage Unit Weapon Assault Rifle Ballistic Gun Assault Rifle Launcher Grenade Launcher Build | -11 -10 -10 ------- Run | Scr Mat Min Slots Evolved . | . . . Power . | . . . Propulsion . | . . . Utility . | . . . Weapon . | . . . Parts Attached 14 | 1 4 9 Power 1 | . 1 . Engine . | . . . Core 1 | . 1 . Reactor . | . . . Propulsion 5 | . 2 3 Treads . | . . . Leg . | . . . Wheel . | . . . Hover 5 | . 2 3 Flight . | . . . Utility 2 | . 1 1 Device 2 | . 1 1 Storage . | . . . Processor . | . . . Hackware . | . . . Protection . | . . . Artifact . | . . . Weapon 6 | 1 . 5 Energy Gun . | . . . Energy Cannon . | . . . Ballistic Gun 5 | 1 . 4 Ballistic Cannon . | . . . Launcher 1 | . . 1 Special Weapon . | . . . Impact Weapon . | . . . Slashing Weapon . | . . . Piercing Weapon . | . . . Special Melee Weapon . | . . . Unidentified Prototypes 1 | . . 1 Parts Lost 7 | . . 7 Power 1 | . . 1 Propulsion 5 | . . 5 Utility . | . . . Weapon 1 | . . 1 Highest Loss Streak 5 | . . 5 To Critical Strikes . | . . . Average Slot Usage (%) 88 | . 96 80 Engine 5 | . 11 . Core 7 | . 2 13 Leg 1 | . 3 . Hover 26 | . 24 27 Device 7 | . 10 4 Storage 14 | . 14 14 Ballistic Gun 23 | . 28 19 Naked Turns . | . . . Heaviest Build 15 | 14 15 15 Greatest Support 20 | 20 20 12 Greatest Overweight (x) 1 | . 1 1 Average Overweight (x) . | . . . Largest Inventory Capacity 8 | 8 8 8 Average Capacity 8 | 8 8 8 Most Carried 8 | 6 7 8 Average Carried 6 | 5 4 7 Final Capacity 8 | 8 8 8 Final Carried 6 | 1 6 5 Class Distribution -------------------- 89% | Mutant 10% | Scavenger-Mutant Dominant Class ---------------- Mutant | -10/Materials Mutant | -10/Mines Resources | -11 -10 -10 ----------- Run | Scr Mat Min Matter Collected 477 | 200 133 144 Remotely . | . . . Salvage Created 376 | . 206 170 Parts 47 | . 21 26 Haulers Intercepted . | . . . Recyclers Shooed 2 | . 1 1 Parts Field Recycled . | . . . Retrieved Matter . | . . . Parts Self-Destructed . | . . . Prevented . | . . . Kills | -11 -10 -10 ------- Run | Scr Mat Min Combat Hostiles Destroyed 29 | . 8 21 Guns 17 | . 8 9 AOE 12 | . . 12 Classes Destroyed 6 | . 3 3 Builder 1 | . . 1 Tunneler 1 | . . 1 Watcher 1 | . 1 . Swarmer 15 | . 6 9 Grunt 2 | . 2 . Assembled 12 | . . 12 Best Kill Streak 13 | . 3 13 Combat Bots Only 12 | . 3 12 Max Kills in Single Turn 2 | . 2 2 Gunslinging 1 | . 1 . Exploded 2 | . . 2 Melee . | . . . Uniques/NPCs Destroyed . | . . . Combat | -11 -10 -10 -------- Run | Scr Mat Min Damage Taken 727 | . 211 516 Core 260 | . 31 229 Absorbed by Shields . | . . . Core Remaining (%) 100 | 100 . . Volleys Fired 57 | . 27 30 Largest 2 | . 2 2 Hottest 40 | . 40 40 Shots Fired 88 | . 54 34 Gun 78 | . 54 24 Cannon . | . . . Launcher 10 | . . 10 Special . | . . . Kinetic 78 | . 54 24 Thermal . | . . . Explosive 10 | . . 10 Electromagnetic . | . . . Robot Hit Streak 10 | . 10 6 Robot Miss Streak 3 | . 3 2 Penetration Max . | . . . Secondary Targets 2 | . 2 . Max Gunslinging Chain 1 | . 1 . Shots Hit Robots 59 | . 38 21 Core Hits 53 | . 13 40 Critical Kills 1 | . . 1 Critical Parts Destroyed . | . . . Critical Strikes 1 | . . 1 Destroy 1 | . . 1 Melee Attacks . | . . . Impact . | . . . Slashing . | . . . Piercing . | . . . Sneak Attacks . | . . . Combat Hostiles . | . . . Follow-up Attacks . | . . . Damage Inflicted 1519 | . 529 990 Guns 710 | . 529 181 Cannons . | . . . Explosions 809 | . . 809 Melee . | . . . Ramming . | . . . Kinetic 710 | . 529 181 Thermal . | . . . Explosive 809 | . . 809 Electromagnetic . | . . . Impact . | . . . Slashing . | . . . Piercing . | . . . Highest Corruption 2 | . . 2 Average Corruption 2 | . . 2 Corruption Purged . | . . . Corruption Blocked . | . . . Effects 1 | . . 1 Energy Discharges 1 | . . 1 Overload Shots . | . . . Overflow Damage 13 | . . 13 Projectiles . | . . . Explosions 13 | . . 13 Melee . | . . . Knockbacks . | . . . Impact . | . . . Kinetic . | . . . Secondary . | . . . Self-Inflicted Damage 68 | . . 68 Shots 3 | . . 3 Rammed . | . . . Targets Rammed . | . . . Kicked . | . . . Crushed . | . . . Highest Temperature 8 | . 4 8 Average Temperature 4 | . 4 6 Received Heat Transfer 45 | . 45 . Siege Activations . | . . . Robots Corrupted . | . . . Combat Hostiles . | . . . Parts Fried . | . . . Impact Corruptions . | . . . Robots Melted . | . . . Combat Hostiles . | . . . Parts Melted . | . . . Heat Transferred . | . . . Parts Sabotaged . | . . . Parts Stolen . | . . . Parts Stripped . | . . . Power Chain Reactions . | . . . Missiles Intercepted . | . . . Alert | -11 -10 -10 ------- Run | Scr Mat Min Peak Influence 220 | . 220 205 Initial 6 | . . 6 Average 103 | . 129 88 Maximum Alert Level 1 | . 1 1 Low Security (%) 75 | 100 76 72 Level 1 24 | . 23 27 Level 2 . | . . . Level 3 . | . . . Level 4 . | . . . Level 5 . | . . . High Security . | . . . Max Security . | . . . Squads Dispatched . | . . . Investigation . | . . . Extermination . | . . . Reinforcement . | . . . Assault . | . . . Garrison . | . . . Intercept . | . . . Searches Triggered . | . . . Construction Impeded . | . . . Haulers Reinforced . | . . . Active Scanning Responses . | . . . Cargo Convoy Interrupts . | . . . Stealth | -11 -10 -10 --------- Run | Scr Mat Min Distress Signals 2 | . 2 . Communications Jammed . | . . . Distress Signals . | . . . Times Spotted 37 | . 10 27 Peak Tracking Total 7 | . 4 7 Tactical Retreats . | . . . Traps | -11 -10 -10 ------- Run | Scr Mat Min Traps Triggered . | . . . Indirectly . | . . . Trap Hack Attempts . | . . . Triggered . | . . . Disarmed . | . . . Reprogrammed . | . . . Reused . | . . . Traps Extracted . | . . . Installed . | . . . Triggered . | . . . Machines | -11 -10 -10 ---------- Run | Scr Mat Min Machines Disabled . | . . . Max in Single Turn . | . . . Machines Sabotaged . | . . . Garrisons Compromised . | . . . Overloaded Fab Kills . | . . . Hacking | -11 -10 -10 --------- Run | Scr Mat Min Machines Accessed 1 | . 1 . Terminals . | . . . Fabricators . | . . . Repair Stations 1 | . 1 . Recycling Units . | . . . Scanalyzers . | . . . Garrison Access . | . . . Total Hacks 1 | . 1 . Successful 1 | . 1 . Failed . | . . . Catastrophic . | . . . Database Lockouts . | . . . Manual . | . . . Terminals . | . . . Fabricators . | . . . Repair Stations 1 | . 1 . Recycling Units . | . . . Scanalyzers . | . . . Garrison Access . | . . . Terminal Hacks . | . . . Fabricator Hacks . | . . . Repair Station Hacks 1 | . 1 . Refit 1 | . 1 . Recycling Unit Hacks . | . . . Scanalyzer . | . . . Garrison Access Hacks . | . . . Unauthorized Hacks . | . . . Terminals . | . . . Fabricators . | . . . Repair Stations . | . . . Recycling Units . | . . . Scanalyzers . | . . . Garrison Access . | . . . Data Cores Recovered . | . . . Used . | . . . Hacking Detections . | . . . Full Trace Events . | . . . Feedback Events . | . . . Feedback Blocked . | . . . Robot Schematics Acquired . | . . . Robots Built . | . . . Authchips . | . . . Time . | . . . Total Robot Build Rating . | . . . Part Schematics Acquired . | . . . Parts Built . | . . . Authchips . | . . . Time . | . . . Total Part Build Rating . | . . . Parts Repaired . | . . . Time . | . . . Parts Recycled . | . . . Recycled Matter . | . . . Retrieved Matter . | . . . Retrieved Components . | . . . Parts Scanalyzed . | . . . Part Schematics Acquired . | . . . Parts Damaged . | . . . Bothacking | -11 -10 -10 ------------ Run | Scr Mat Min Used RIF Installer . | . . . Robots Hacked . | . . . Non-combat . | . . . Combat . | . . . Robot Hacks Applied . | . . . Relay Couplers Released . | . . . Fabnet Peak Effective % . | . . . Robots Rewired . | . . . Allies Hacked . | . . . Hacks Repelled . | . . . Allies | -11 -10 -10 -------- Run | Scr Mat Min Total Allies . | . . . Largest Group . | . . . Highest-Rated Group . | . . . Highest-Rated Ally . | . . . Total Orders . | . . . Ally Attacks . | . . . Total Damage . | . . . Kills . | . . . Allies Corrupted . | . . . Allies Melted . | . . . Intel | -11 -10 -10 ------- Run | Scr Mat Min Robot Analysis Total . | . . . Derelict Logs Recovered . | . . . Drone Launches . | . . . Drone Recoveries . | . . . Exploration | -11 -10 -10 ------------- Run | Scr Mat Min Turns Passed 908 | 44 411 453 Spaces Moved 765 | 34 264 467 Core 2 | . . 2 Treads . | . . . Legs 68 | 34 34 . Wheels . | . . . Hover 695 | . 230 465 Flight . | . . . Fastest Speed 56 | 120 116 56 Average Speed 95 | 120 120 79 Slowest Speed 156 | 120 156 136 Overloaded Moves . | . . . Propulsion Burnouts . | . . . Robots Hopped . | . . . Cave-ins Triggered . | . . . Exploration Rate (%) 44 | 3 45 86 Regions Visited 2 Branch Regions 1 Pre-discovered Areas . | . . . Known Exits Taken . | . . . Unknown Exits Taken 2 | 1 1 . Scrap Searched 1 | . . 1 Spaces Dug . | . . . Terrain Destroyed 64 | . . 64 Melee . | . . . Projectile . | . . . AOE 64 | . . 64 Terrain Rammed . | . . . Walls Destroyed . | . . . Machines Disabled . | . . . Actions | -11 -10 -10 --------- Run | Scr Mat Min Total 864 | 39 304 521 Wait . | . . . Move 763 | 33 263 467 Hop . | . . . Pick Up 12 | . 5 7 Fast Attach 4 | . 2 2 Attach 9 | 1 2 6 Detach 3 | . 2 1 Swap 1 | . . 1 Drop 15 | 5 3 7 Fire 57 | . 27 30 Melee . | . . . Ram . | . . . Kick . | . . . Crush . | . . . Escape Stasis . | . . . Rewire . | . . . Trap . | . . . Miscellaneous . | . . . Route ------- -11/Scrapyard -10/Materials (discovered 3 exits: [*Mat x2] / [*Min]) -10/Mines (discovered 1 exit: [*Mat]) History --------- Turn | Location | Event 1 | -11/Scrapyard | Discovered new exit (range 3) 45 | -11/Scrapyard | Entered Materials 142 | -10/Materials | Discovered new exit (range 15) 142 | -10/Materials | Discovered new exit (range 9) 318 | -10/Materials | Build established: Mutant 419 | -10/Materials | Discovered new exit (range 6) 456 | -10/Materials | Entered Mines 541 | -10/Mines | Discovered new exit (range 7) 832 | -10/Mines | Found a damaged Exp. Sensor Array with a note attached 834 | -10/Mines | Found Prototype Device 835 | -10/Mines | Identified Exp. Sensor Array 860 | -10/Mines | Assembled infested the area 887 | -10/Mines | Core integrity fell below 50% 905 | -10/Mines | Core integrity fell below 20% 907 | -10/Mines | Destroyed 12 combat bots 909 | -10/Mines | Destroyed by D-53 Grenadier with Mini Grenade Launcher Last Messages --------------- 00882_ as-63727 destroyed. 00884_ The unstable cave ceiling collapses. 00884_ as-56541 destroyed. 00886_ The unstable cave ceiling collapses. 00886_ as-02370 destroyed. 00887_ Grenade Launcher destroyed. 00887_ System corrupted by crushing effect (+2). 00887_ Knocked back. 00891_ The unstable cave ceiling collapses. 00892_ C-30 ARC bursts open, deploying its payload. 00892_ D-53 Grenadier unfolds itself. 00892_ Hover Unit destroyed. 00892_ as-28570 destroyed. 00893_ Backup Propulsion I destroyed. 00894_ as-09808 destroyed. 00895_ as-44187 destroyed. 00896_ U-05 Engineer lays Concrete. 00897_ as-98804 destroyed. 00904_ Backup Propulsion I destroyed. 00908_ System corrupted: Energy discharge (-15). Map ----- +----------------------------------------------------+ | #???# #?????????????????????### ???????????? | | #???####????????????????????## ???????????? | | ?????????????????????????+### ###????????? | | ????????????????????????? ##??????? | | ???????????????????????? ##?????? | | ???????????###?????????? #?????? | | ??????????## ##?????????# #?????? | | ?????????## #?????????# ##????? | | ???????### #?????????# #????? | | ??????## ######?????# # #????? | | ?????## ! #????# ##???? | | ?????# ##### #????######### #???? | | ###??# ####???# ######???????# #???? | | #??# ##??????# #???????# #???? | | #??## #???????###### ######### #????? | | ##### #????????????# "% ##????? | | #????????????########### #????? | | ##### #??????????????????????# #????? | | ###???# #??????????????????????### #????? | | ??????# #?????????????????#####??## ##????? | | ??????# #????????????????## ##?## ##???? | | ??????# ######???????????# ### ##??? | | ??????# ## ##??????##### dd ##?? | | ?????## # #??????# #?? | | ????## ######## | #?? | | #??## @ = =#?? | | ### r t = * #?? | | ####### * = ##?? | | #?????## = = * ##??? | | ##???######## [### #???? | | #???## ## ###?## #???? | | ##???# ##????# #???? | | ##????# #?????# #???? | | # #?????# ## #?????# #???? | | # ##????## #######???### #???? | | ## #?????## #?????????# #???? | | ?## #??????## #???????### #???? | | ??## ##???????# ##???????# ###???? | | ???# ##????????## ##????????# ###?????? | | ??## ##??????????####?????????# #???????? | | ### ##?????????????############[ #???????? | | ###??????????????#T ##???????? | | ##?????????????????# """ """[#????????? | | #######??????????????????# """ """ #????????? | | ???????????????????####??# """ """ #????????? | | ??########????????## #### * =#????????? | | ??# ########## """="""=#????????? | | ??# """ ### """ """ #????????? | | ??# """ ##?# """ """ #????????? | | ??# """ ######## ##??# #????????? | +----------------------------------------------------+ Best States ------------- Heat Dissipation 25 Energy Generation 14 Energy Capacity 250 Matter Stores 300 Matter Capacity 300 Sight Range 16 Terrain Scan Density 10 Resistance: KI 20 Resistance: TH 20 Resistance: EX 20 Resistance: EM 20 Resistance: I 20 Resistance: S 20 Resistance: P 20 Evasion (%) 55 Offensive Hacking 10 Item Schematics ----------------- None Robot Schematics ------------------ None Fabricated ------------ Nothing Alien Tech Used ----------------- None Achievements -------------- None Challenges ------------ None Game ------ Seed MicroActiveTerminator Manual? 0 Play Time 00:16:12 Cumulative 950.2 hours Start 2022.08.13 @ 15:44:59 End 2022.08.13 @ 16:14:42 Sessions 1 Manual Loads 0 Difficulty Adventurer Special Mode None Game No. 209 Rogue 1 Adventurer 208 Explorer 0 Win Type - Total 4 Types 4/0/0/0/0/0/0/0/0 Lore% 69 Gallery% 83 Achievement% 64 Wizard Run 0 Options --------- ASCII 0 Keyboard 0 Movement Mouse Keybinds 0 Fullscreen 0 Font 16/SmallcapsGlow Map View 76x50 Tactical HUD 1 Map Filters NONE Filters BRIGHTNESS(125)|SATURATION(75)|LOW_CONTRAST(13,24,33)|SHIFT_HUE(130) Steam 1 RUN: bd921699-ab21-4afb-a503-890116391661